[Event "IV Elllobregat Open Chess Tmnt"]
[Site "Sant Boi de Llobregat, Spain"]
[Date "2023.12.01"]
[Round "2.40"]
[White "Llaneza Vega, Patricia"]
[Black "Agmanov, Zhandos"]
[Result "0-1"]
[TimeControl "90min/40moves + 15min/end + 30sec from move 1"]
[WhiteFideId "2212676"]
[BlackFideId "13708309"]
[WhiteElo "2099"]
[BlackElo "2448"]

1. e4 {[%clk 01:29:21]} {[%emt 00:01:38]} e6 {[%clk 01:30:23]} {[%emt
00:00:37]} 2. d4 {[%clk 01:29:43]} {[%emt 00:00:08]} d5 {[%clk 01:30:48]}
{[%emt 00:00:05]} 3. Bd3 {[%clk 01:29:54]} {[%emt 00:00:20]} dxe4 {[%clk
01:29:53]} {[%emt 00:01:25]} 4. Bxe4 {[%clk 01:30:19]} {[%emt 00:00:04]} Nf6
{[%clk 01:30:14]} {[%emt 00:00:08]} 5. Bf3 {[%clk 01:30:46]} {[%emt 00:00:04]}
c5 {[%clk 01:30:29]} {[%emt 00:00:16]} 6. Ne2 {[%clk 01:30:51]} {[%emt
00:00:25]} Be7 {[%clk 01:30:27]} {[%emt 00:00:31]} 7. O-O {[%clk 01:28:35]}
{[%emt 00:02:47]} O-O {[%clk 01:30:31]} {[%emt 00:00:24]} 8. Nbc3 {[%clk
01:27:35]} {[%emt 00:01:31]} Nc6 {[%clk 01:02:37]} {[%emt 00:28:24]} 9. Be3
{[%clk 01:24:29]} {[%emt 00:03:36]} cxd4 {[%clk 00:55:56]} {[%emt 00:07:12]} 10.
Nxd4 {[%clk 01:24:48]} {[%emt 00:00:10]} Ne5 {[%clk 00:56:22]} {[%emt
00:00:04]} 11. Re1 {[%clk 01:20:58]} {[%emt 00:04:20]} Nc4 {[%clk 00:53:43]}
{[%emt 00:03:09]} 12. Qe2 {[%clk 01:14:42]} {[%emt 00:06:46]} Nxe3 {[%clk
00:51:34]} {[%emt 00:02:40]} 13. Qxe3 {[%clk 01:15:07]} {[%emt 00:00:05]} Qb6
{[%clk 00:47:21]} {[%emt 00:04:42]} 14. Rad1 {[%clk 01:03:59]} {[%emt
00:11:38]} Bd7 {[%clk 00:43:50]} {[%emt 00:04:01]} 15. Nb3 {[%clk 00:54:49]}
{[%emt 00:09:41]} Qc7 {[%clk 00:41:02]} {[%emt 00:03:18]} 16. Rd3 {[%clk
00:41:08]} {[%emt 00:14:10]} Rfc8 {[%clk 00:38:20]} {[%emt 00:03:12]} 17. Red1
{[%clk 00:38:28]} {[%emt 00:03:11]} Be8 {[%clk 00:37:50]} {[%emt 00:01:00]} 18.
Nd4 {[%clk 00:28:30]} {[%emt 00:10:27]} a6 {[%clk 00:37:20]} {[%emt 00:01:00]}
19. Ne4 {[%clk 00:26:02]} {[%emt 00:02:58]} Nd5 {[%clk 00:34:48]} {[%emt
00:03:01]} 20. Qd2 {[%clk 00:26:25]} {[%emt 00:00:07]} h6 {[%clk 00:29:08]}
{[%emt 00:06:11]} 21. Ng3 {[%clk 00:21:08]} {[%emt 00:05:48]} Rd8 {[%clk
00:22:55]} {[%emt 00:06:42]} 22. Ndf5 {[%clk 00:15:58]} {[%emt 00:05:39]} Bg5
{[%clk 00:22:02]} {[%emt 00:01:23]} 23. Qe1 {[%clk 00:16:25]} {[%emt 00:00:04]}
Bb5 {[%clk 00:07:14]} {[%emt 00:15:18]} 24. Rd4 {[%clk 00:14:46]} {[%emt
00:02:08]} exf5 {[%clk 00:05:33]} {[%emt 00:02:12]} 25. Rxd5 {[%clk 00:13:24]}
{[%emt 00:01:52]} Qxc2 {[%clk 00:03:50]} {[%emt 00:02:14]} 26. Rxd8+ {[%clk
00:10:54]} {[%emt 00:03:00]} Rxd8 {[%clk 00:04:08]} {[%emt 00:00:11]} 27. Rxd8+
{[%clk 00:11:20]} {[%emt 00:00:04]} Bxd8 {[%clk 00:04:36]} {[%emt 00:00:03]} 28.
h3 {[%clk 00:10:13]} {[%emt 00:01:36]} Qxb2 {[%clk 00:02:48]} {[%emt 00:02:19]}
29. Nxf5 {[%clk 00:10:05]} {[%emt 00:00:37]} Qxa2 {[%clk 00:02:09]} {[%emt
00:01:10]} 30. Qe5 {[%clk 00:08:46]} {[%emt 00:01:48]} Bf6 {[%clk 00:02:09]}
{[%emt 00:00:30]} 31. Nxh6+ {[%clk 00:07:48]} {[%emt 00:01:28]} Kf8 {[%clk
00:01:55]} {[%emt 00:00:44]} 32. Qc5+ {[%clk 00:05:12]} {[%emt 00:03:06]} Be7
{[%clk 00:02:19]} {[%emt 00:00:07]} 33. Qc8+ {[%clk 00:05:35]} {[%emt
00:00:06]} Be8 {[%clk 00:02:48]} 34. Nf5 {[%clk 00:05:36]} {[%emt 00:00:29]}
Qa1+ {[%clk 00:02:12]} {[%emt 00:01:06]} 35. Kh2 {[%clk 00:06:01]} {[%emt
00:00:05]} Qe5+ {[%clk 00:02:13]} {[%emt 00:00:30]} 36. g3 {[%clk 00:05:46]}
{[%emt 00:00:45]} Bc5 {[%clk 00:01:34]} {[%emt 00:01:09]} 37. Bxb7 {[%clk
00:06:02]} {[%emt 00:00:13]} g6 {[%clk 00:02:00]} {[%emt 00:00:04]} 38. Ne3
{[%clk 00:05:26]} {[%emt 00:01:06]} Bxe3 {[%clk 00:01:40]} {[%emt 00:00:50]} 39.
fxe3 {[%clk 00:05:52]} {[%emt 00:00:04]} a5 {[%clk 00:00:44]} {[%emt 00:01:27]}
40. Bc6 {[%clk 00:17:39]} {[%emt 00:03:43]} Qb2+ {[%clk 00:15:57]} {[%emt
00:00:16]} 41. Bg2 {[%clk 00:17:56]} {[%emt 00:00:13]} a4 {[%clk 00:15:46]}
{[%emt 00:00:41]} 42. Qc5+ {[%clk 00:18:20]} {[%emt 00:00:06]} Kg7 {[%clk
00:15:37]} {[%emt 00:00:39]} 43. Qd4+ {[%clk 00:10:03]} {[%emt 00:08:47]} Qxd4
{[%clk 00:15:48]} {[%emt 00:00:20]} 44. exd4 {[%clk 00:10:32]} {[%emt
00:00:01]} f5 {[%clk 00:12:33]} {[%emt 00:03:45]} 0-1

[Event "IV Elllobregat Open Chess Tmnt"]
[Site "Sant Boi de Llobregat, Spain"]
[Date "2023.12.01"]
[Round "2.41"]
[White "Stachanczyk, Jacek"]
[Black "Gholami Orimi, Mahdi"]
[Result "0-1"]
[TimeControl "90min/40moves + 15min/end + 30sec from move 1"]
[WhiteFideId "1116657"]
[BlackFideId "12558486"]
[WhiteElo "2091"]
[BlackElo "2442"]

1. e4 {[%clk 01:30:55]} {[%emt 00:00:04]} c5 {[%clk 01:30:32]} {[%emt
00:00:29]} 2. Nf3 {[%clk 01:31:23]} {[%emt 00:00:02]} d6 {[%clk 01:30:53]}
{[%emt 00:00:09]} 3. d4 {[%clk 01:31:51]} {[%emt 00:00:02]} cxd4 {[%clk
01:31:15]} {[%emt 00:00:08]} 4. Nxd4 {[%clk 01:32:19]} {[%emt 00:00:02]} Nf6
{[%clk 01:31:34]} {[%emt 00:00:11]} 5. Nc3 {[%clk 01:32:47]} {[%emt 00:00:02]}
Nc6 {[%clk 01:31:55]} {[%emt 00:00:09]} 6. Bg5 {[%clk 01:33:15]} {[%emt
00:00:02]} e6 {[%clk 01:32:11]} {[%emt 00:00:15]} 7. Qd2 {[%clk 01:33:42]}
{[%emt 00:00:02]} a6 {[%clk 01:32:27]} {[%emt 00:00:14]} 8. O-O-O {[%clk
01:34:06]} {[%emt 00:00:04]} Bd7 {[%clk 01:32:47]} {[%emt 00:00:11]} 9. f4
{[%clk 01:34:31]} {[%emt 00:00:06]} Be7 {[%clk 01:33:00]} {[%emt 00:00:17]} 10.
Nf3 {[%clk 01:34:27]} {[%emt 00:00:34]} b5 {[%clk 01:33:15]} {[%emt 00:00:15]}
11. Bxf6 {[%clk 01:33:49]} {[%emt 00:01:08]} gxf6 {[%clk 01:33:33]} {[%emt
00:00:12]} 12. f5 {[%clk 01:33:57]} {[%emt 00:00:22]} Qb6 {[%clk 01:33:46]}
{[%emt 00:00:17]} 13. fxe6 {[%clk 01:30:25]} {[%emt 00:04:02]} fxe6 {[%clk
01:32:27]} {[%emt 00:01:48]} 14. g3 {[%clk 01:25:08]} {[%emt 00:05:47]} O-O-O
{[%clk 01:32:27]} {[%emt 00:00:30]} 15. Bh3 {[%clk 01:20:23]} {[%emt 00:05:14]}
Kb8 {[%clk 01:28:44]} {[%emt 00:04:15]} 16. Kb1 {[%clk 01:09:20]} {[%emt
00:11:33]} Bc8 {[%clk 01:18:46]} {[%emt 00:10:27]} 17. Rhf1 {[%clk 00:58:34]}
{[%emt 00:11:17]} Rhe8 {[%clk 00:58:01]} {[%emt 00:21:15]} 18. Qh6 {[%clk
00:51:46]} {[%emt 00:07:17]} Qc7 {[%clk 00:52:35]} {[%emt 00:05:56]} 19. Ne2
{[%clk 00:44:35]} {[%emt 00:07:42]} Ne5 {[%clk 00:49:15]} {[%emt 00:03:50]} 20.
Nfd4 {[%clk 00:41:06]} {[%emt 00:03:58]} Bf8 {[%clk 00:44:35]} {[%emt
00:05:11]} 21. Qe3 {[%clk 00:38:37]} {[%emt 00:02:58]} Nc4 {[%clk 00:26:53]}
{[%emt 00:18:13]} 22. Qb3 {[%clk 00:29:13]} {[%emt 00:09:54]} Na5 {[%clk
00:17:30]} {[%emt 00:09:53]} 23. Qa3 {[%clk 00:27:08]} {[%emt 00:02:35]} e5
{[%clk 00:15:21]} {[%emt 00:02:39]} 24. Nf5 {[%clk 00:17:02]} {[%emt 00:10:36]}
d5 {[%clk 00:15:13]} {[%emt 00:00:39]} 25. Qf3 {[%clk 00:17:11]} {[%emt
00:00:19]} dxe4 {[%clk 00:14:34]} {[%emt 00:01:10]} 26. Qxe4 {[%clk 00:15:49]}
{[%emt 00:01:52]} Bb7 {[%clk 00:15:02]} {[%emt 00:00:02]} 27. Qh4 {[%clk
00:15:01]} {[%emt 00:01:17]} Nc4 {[%clk 00:15:00]} {[%emt 00:00:32]} 28. Rfe1
{[%clk 00:12:42]} {[%emt 00:02:50]} Nd2+ {[%clk 00:14:42]} {[%emt 00:00:47]} 29.
Kc1 {[%clk 00:12:49]} {[%emt 00:00:24]} Nf3 {[%clk 00:14:25]} {[%emt 00:00:47]}
30. Qxf6 {[%clk 00:12:45]} {[%emt 00:00:34]} Nxe1 {[%clk 00:14:51]} {[%emt
00:00:04]} 31. Rxe1 {[%clk 00:13:01]} {[%emt 00:00:14]} Qa5 {[%clk 00:15:18]}
{[%emt 00:00:03]} 0-1

[Event "IV Elllobregat Open Chess Tmnt"]
[Site "Sant Boi de Llobregat, Spain"]
[Date "2023.12.01"]
[Round "2.42"]
[White "Habans Aguerrea, Javier"]
[Black "Shirov, Alexei"]
[Result "1/2-1/2"]
[TimeControl "90min/40moves + 15min/end + 30sec from move 1"]
[WhiteFideId "24524689"]
[BlackFideId "2209390"]
[WhiteElo "2345"]
[BlackElo "2668"]

1. c4 {[%clk 01:30:57]} {[%emt 00:00:02]} e5 {[%clk 01:30:53]} {[%emt
00:00:07]} 2. Nc3 {[%clk 01:31:13]} {[%emt 00:00:14]} Bb4 {[%clk 01:31:14]}
{[%emt 00:00:08]} 3. Nd5 {[%clk 01:31:23]} {[%emt 00:00:22]} Be7 {[%clk
01:31:36]} {[%emt 00:00:07]} 4. d4 {[%clk 01:31:29]} {[%emt 00:00:24]} d6
{[%clk 01:30:10]} {[%emt 00:01:56]} 5. e4 {[%clk 01:31:39]} {[%emt 00:00:20]}
Nf6 {[%clk 01:30:16]} {[%emt 00:00:23]} 6. Nxe7 {[%clk 01:31:51]} {[%emt
00:00:19]} Qxe7 {[%clk 01:30:38]} {[%emt 00:00:08]} 7. f3 {[%clk 01:32:11]}
{[%emt 00:00:11]} exd4 {[%clk 01:30:28]} {[%emt 00:00:40]} 8. Qxd4 {[%clk
01:32:28]} {[%emt 00:00:12]} Nc6 {[%clk 01:30:53]} {[%emt 00:00:04]} 9. Qc3
{[%clk 01:30:58]} {[%emt 00:02:01]} O-O {[%clk 01:31:12]} {[%emt 00:00:11]} 10.
Ne2 {[%clk 01:30:24]} {[%emt 00:01:05]} Ne8 {[%clk 01:31:31]} {[%emt 00:00:10]}
11. Nf4 {[%clk 01:05:40]} {[%emt 00:25:14]} f5 {[%clk 01:26:49]} {[%emt
00:05:12]} 12. Nd5 {[%clk 01:02:58]} {[%emt 00:03:12]} Qe6 {[%clk 00:57:02]}
{[%emt 00:30:17]} 13. Bd3 {[%clk 00:57:52]} {[%emt 00:05:35]} Ne5 {[%clk
00:56:50]} {[%emt 00:00:43]} 14. O-O {[%clk 00:55:07]} {[%emt 00:03:15]} Nxd3
{[%clk 00:57:07]} {[%emt 00:00:13]} 15. Qxd3 {[%clk 00:54:35]} {[%emt
00:01:01]} fxe4 {[%clk 00:57:28]} {[%emt 00:00:09]} 16. fxe4 {[%clk 00:45:18]}
{[%emt 00:09:47]} Rxf1+ {[%clk 00:57:44]} {[%emt 00:00:15]} 17. Qxf1 {[%clk
00:45:38]} {[%emt 00:00:10]} c6 {[%clk 00:57:05]} {[%emt 00:01:09]} 18. Nc3
{[%clk 00:44:37]} {[%emt 00:01:31]} Qe5 {[%clk 00:48:20]} {[%emt 00:09:14]} 19.
Qf4 {[%clk 00:35:44]} {[%emt 00:09:24]} Be6 {[%clk 00:46:06]} {[%emt 00:02:44]}
20. Qxe5 {[%clk 00:27:06]} {[%emt 00:09:08]} dxe5 {[%clk 00:45:42]} {[%emt
00:00:54]} 21. b3 {[%clk 00:22:03]} {[%emt 00:05:33]} Rd8 {[%clk 00:45:53]}
{[%emt 00:00:18]} 22. Bg5 {[%clk 00:21:04]} {[%emt 00:01:30]} Rd3 {[%clk
00:44:44]} {[%emt 00:01:38]} 23. Rc1 {[%clk 00:21:04]} {[%emt 00:00:31]} Nf6
{[%clk 00:43:03]} {[%emt 00:02:11]} 24. Bxf6 {[%clk 00:20:42]} {[%emt
00:00:52]} gxf6 {[%clk 00:43:14]} {[%emt 00:00:19]} 25. Rc2 {[%clk 00:21:02]}
{[%emt 00:00:10]} Kf7 {[%clk 00:38:09]} {[%emt 00:05:34]} 26. Kf2 {[%clk
00:20:54]} {[%emt 00:00:39]} Bg4 {[%clk 00:37:56]} {[%emt 00:00:43]} 27. Na4
{[%clk 00:16:26]} {[%emt 00:04:58]} b6 {[%clk 00:37:05]} {[%emt 00:01:21]} 28.
Nb2 {[%clk 00:15:25]} {[%emt 00:01:31]} Rd4 {[%clk 00:36:06]} {[%emt 00:01:30]}
29. Ke3 {[%clk 00:15:48]} {[%emt 00:00:06]} Bh5 {[%clk 00:28:53]} {[%emt
00:07:42]} 30. Rd2 {[%clk 00:14:37]} {[%emt 00:01:42]} c5 {[%clk 00:29:19]}
{[%emt 00:00:04]} 31. Na4 {[%clk 00:14:09]} {[%emt 00:00:58]} Bg6 {[%clk
00:29:37]} {[%emt 00:00:12]} 32. Nc3 {[%clk 00:14:29]} {[%emt 00:00:10]} h5
{[%clk 00:30:02]} {[%emt 00:00:05]} 33. Rf2 {[%clk 00:13:48]} {[%emt 00:01:10]}
Ke6 {[%clk 00:27:32]} {[%emt 00:03:00]} 34. g3 {[%clk 00:11:38]} {[%emt
00:02:40]} a6 {[%clk 00:25:32]} {[%emt 00:02:30]} 35. Rd2 {[%clk 00:08:44]}
{[%emt 00:03:24]} h4 {[%clk 00:25:11]} {[%emt 00:00:52]} 36. gxh4 {[%clk
00:06:15]} {[%emt 00:03:00]} b5 {[%clk 00:25:17]} {[%emt 00:00:24]} 37. Rg2
{[%clk 00:05:41]} {[%emt 00:01:03]} bxc4 {[%clk 00:25:14]} {[%emt 00:00:33]} 38.
bxc4 {[%clk 00:03:52]} {[%emt 00:02:19]} Rxc4 {[%clk 00:25:32]} {[%emt
00:00:12]} 39. Kd3 {[%clk 00:04:13]} {[%emt 00:00:09]} Rd4+ {[%clk 00:25:50]}
{[%emt 00:00:12]} 40. Ke3 {[%clk 00:19:42]} {[%emt 00:00:02]} Bf7 {[%clk
00:35:00]} {[%emt 00:06:19]} 41. a3 {[%clk 00:16:08]} {[%emt 00:04:04]} Rd8
{[%clk 00:24:19]} {[%emt 00:11:11]} 42. Rb2 {[%clk 00:10:07]} {[%emt 00:06:31]}
Ke7 {[%clk 00:19:36]} {[%emt 00:05:12]} 43. Rb7+ {[%clk 00:10:02]} {[%emt
00:00:36]} Kf8 {[%clk 00:19:51]} {[%emt 00:00:14]} 44. Rc7 {[%clk 00:08:43]}
{[%emt 00:01:50]} c4 {[%clk 00:19:35]} {[%emt 00:00:45]} 45. Nd5 {[%clk
00:09:01]} {[%emt 00:00:13]} f5 {[%clk 00:19:32]} {[%emt 00:00:33]} 46. Nf6
{[%clk 00:06:56]} {[%emt 00:02:36]} f4+ {[%clk 00:12:35]} {[%emt 00:07:26]} 47.
Kf2 {[%clk 00:06:10]} {[%emt 00:01:15]} Rd2+ {[%clk 00:12:21]} {[%emt
00:00:45]} 48. Ke1 {[%clk 00:05:34]} {[%emt 00:01:04]} Rg2 {[%clk 00:02:13]}
{[%emt 00:10:39]} 49. Nh7+ {[%clk 00:04:08]} {[%emt 00:01:56]} Kg8 {[%clk
00:02:32]} {[%emt 00:00:11]} 50. Nf6+ {[%clk 00:04:31]} {[%emt 00:00:08]} Kg7
{[%clk 00:02:48]} {[%emt 00:00:13]} 51. Nd7 {[%clk 00:04:56]} {[%emt 00:00:06]}
Bh5 {[%clk 00:02:52]} {[%emt 00:00:26]} 52. Nxe5+ {[%clk 00:04:39]} {[%emt
00:00:48]} Kf6 {[%clk 00:03:14]} {[%emt 00:00:07]} 53. Nxc4 {[%clk 00:05:05]}
{[%emt 00:00:04]} Re2+ {[%clk 00:02:30]} {[%emt 00:01:14]} 54. Kf1 {[%clk
00:05:07]} {[%emt 00:00:28]} Rxe4 {[%clk 00:02:50]} {[%emt 00:00:09]} 55. Rc6+
{[%clk 00:04:45]} {[%emt 00:00:53]} Ke7 {[%clk 00:01:44]} {[%emt 00:01:35]} 56.
Nd2 {[%clk 00:03:24]} {[%emt 00:01:52]} Rd4 {[%clk 00:01:10]} {[%emt 00:01:03]}
57. Nb3 {[%clk 00:02:11]} {[%emt 00:01:44]} Ra4 {[%clk 00:00:56]} {[%emt
00:00:43]} 58. Nc5 {[%clk 00:02:12]} {[%emt 00:00:30]} Rc4 {[%clk 00:01:12]}
{[%emt 00:00:12]} 59. Re6+ {[%clk 00:02:27]} {[%emt 00:00:16]} Kf7 {[%clk
00:01:15]} {[%emt 00:00:27]} 60. Re5 {[%clk 00:02:56]} {[%emt 00:00:02]} Rc1+
{[%clk 00:01:35]} {[%emt 00:00:10]} 61. Kf2 {[%clk 00:03:14]} {[%emt 00:00:11]}
Rc2+ {[%clk 00:01:54]} {[%emt 00:00:12]} 62. Kf1 {[%clk 00:03:14]} {[%emt
00:00:29]} Bg4 {[%clk 00:00:50]} {[%emt 00:01:35]} 63. Ne4 {[%clk 00:02:53]}
{[%emt 00:00:52]} Rxh2 {[%clk 00:00:47]} {[%emt 00:00:32]} 64. Nf2 {[%clk
00:02:20]} {[%emt 00:01:01]} Bd7 {[%clk 00:01:04]} {[%emt 00:00:13]} 65. Rh5
{[%clk 00:01:38]} {[%emt 00:01:13]} f3 {[%clk 00:01:09]} {[%emt 00:00:25]} 66.
Rd5 {[%emt 00:00:36]} Ke6 {[%clk 00:00:42]} {[%emt 00:00:54]} 67. Rd4 {[%clk
00:01:31]} {[%emt 00:00:34]} a5 {[%clk 00:00:42]} {[%emt 00:00:30]} 68. Rg4
{[%clk 00:01:36]} {[%emt 00:00:25]} Kd5 {[%clk 00:00:45]} {[%emt 00:00:27]} 69.
Rf4 {[%clk 00:01:18]} {[%emt 00:00:47]} Bb5+ {[%clk 00:00:49]} {[%emt
00:00:28]} 70. Ke1 {[%clk 00:01:47]} {[%emt 00:00:02]} Be2 {[%emt 00:00:42]} 71.
Ra4 {[%clk 00:01:49]} Kc6 {[%clk 00:01:13]} {[%emt 00:00:19]} 72. Rxa5 {[%clk
00:02:04]} {[%emt 00:00:17]} Rxh4 {[%clk 00:01:38]} {[%emt 00:00:04]} 73. Re5
{[%clk 00:02:05]} {[%emt 00:00:30]} Bb5 {[%clk 00:01:37]} {[%emt 00:00:29]} 74.
Re3 {[%clk 00:01:57]} {[%emt 00:00:38]} Rf4 {[%clk 00:01:53]} {[%emt 00:00:13]}
75. Nd3 {[%clk 00:02:19]} {[%emt 00:00:10]} Bxd3 {[%emt 00:00:35]} 1/2-1/2

[Event "IV Elllobregat Open Chess Tmnt"]
[Site "Sant Boi de Llobregat, Spain"]
[Date "2023.12.01"]
[Round "2.43"]
[White "Vallejo Pons, Francisco"]
[Black "Bournel, Antoine"]
[Result "1-0"]
[TimeControl "90min/40moves + 15min/end + 30sec from move 1"]
[WhiteFideId "2205530"]
[BlackFideId "26093553"]
[WhiteElo "2668"]
[BlackElo "2333"]

1. e4 {[%clk 01:30:50]} {[%emt 00:00:09]} c6 {[%clk 01:30:38]} {[%emt
00:00:23]} 2. d4 {[%clk 01:31:10]} {[%emt 00:00:09]} d5 {[%clk 01:30:38]}
{[%emt 00:00:30]} 3. e5 {[%clk 01:31:31]} {[%emt 00:00:09]} Bf5 {[%clk
01:30:29]} {[%emt 00:00:39]} 4. c4 {[%clk 01:31:53]} {[%emt 00:00:09]} e6
{[%clk 01:29:16]} {[%emt 00:01:43]} 5. Nc3 {[%clk 01:32:16]} {[%emt 00:00:07]}
Bb4 {[%clk 01:28:24]} {[%emt 00:01:21]} 6. Qb3 {[%clk 01:26:25]} {[%emt
00:06:21]} c5 {[%clk 01:10:32]} {[%emt 00:18:23]} 7. cxd5 {[%clk 01:23:11]}
{[%emt 00:03:44]} exd5 {[%clk 01:07:59]} {[%emt 00:03:03]} 8. a3 {[%clk
01:03:24]} {[%emt 00:20:18]} Bxc3+ {[%clk 00:55:11]} {[%emt 00:13:16]} 9. bxc3
{[%clk 01:01:39]} {[%emt 00:02:16]} Nc6 {[%clk 00:50:19]} {[%emt 00:05:23]} 10.
Qxb7 {[%clk 00:46:23]} {[%emt 00:15:45]} Nge7 {[%clk 00:45:30]} {[%emt
00:05:18]} 11. Bb5 {[%clk 00:35:10]} {[%emt 00:11:44]} O-O {[%clk 00:41:34]}
{[%emt 00:04:26]} 12. Bxc6 {[%clk 00:34:59]} {[%emt 00:00:41]} Rb8 {[%clk
00:40:31]} {[%emt 00:01:32]} 13. Qa6 {[%clk 00:34:31]} {[%emt 00:00:59]} Rb6
{[%clk 00:39:09]} {[%emt 00:01:52]} 14. Qa4 {[%clk 00:33:50]} {[%emt 00:01:11]}
Rxc6 {[%clk 00:37:33]} {[%emt 00:02:05]} 15. Ne2 {[%clk 00:33:55]} {[%emt
00:00:25]} cxd4 {[%clk 00:35:03]} {[%emt 00:03:01]} 16. Nxd4 {[%clk 00:25:29]}
{[%emt 00:08:56]} Rxc3 {[%clk 00:33:35]} {[%emt 00:01:58]} 17. Qxa7 {[%clk
00:22:22]} {[%emt 00:03:37]} Bd3 {[%clk 00:30:12]} {[%emt 00:03:53]} 18. Be3
{[%clk 00:20:30]} {[%emt 00:02:21]} Ng6 {[%clk 00:27:59]} {[%emt 00:02:42]} 19.
e6 {[%clk 00:19:37]} {[%emt 00:01:24]} Rc7 {[%clk 00:22:51]} {[%emt 00:05:39]}
20. Qa4 {[%clk 00:18:51]} {[%emt 00:01:16]} Qf6 {[%clk 00:18:38]} {[%emt
00:04:42]} 21. Qa5 {[%clk 00:13:35]} {[%emt 00:05:46]} Qe5 {[%clk 00:15:06]}
{[%emt 00:04:02]} 22. Kd2 {[%clk 00:11:22]} {[%emt 00:02:43]} Bc4 {[%clk
00:11:17]} {[%emt 00:04:18]} 23. Qb6 {[%clk 00:10:33]} {[%emt 00:01:20]} Rcc8
{[%clk 00:07:45]} {[%emt 00:04:02]} 24. exf7+ {[%clk 00:08:12]} {[%emt
00:02:51]} Rxf7 {[%clk 00:07:38]} {[%emt 00:00:37]} 25. Qe6 {[%clk 00:08:28]}
{[%emt 00:00:14]} Qb8 {[%clk 00:07:21]} {[%emt 00:00:46]} 26. Rhb1 {[%clk
00:08:02]} {[%emt 00:00:57]} Qa8 {[%clk 00:07:09]} {[%emt 00:00:42]} 27. Rb4
{[%clk 00:07:52]} {[%emt 00:00:40]} Re8 {[%clk 00:06:20]} {[%emt 00:01:19]} 28.
Qc6 {[%clk 00:07:53]} {[%emt 00:00:28]} Qd8 {[%clk 00:05:59]} {[%emt 00:00:51]}
29. Rab1 {[%clk 00:07:59]} {[%emt 00:00:25]} Rfe7 {[%clk 00:03:47]} {[%emt
00:02:42]} 30. Nf5 {[%clk 00:05:41]} {[%emt 00:02:48]} Rc7 {[%clk 00:02:32]}
{[%emt 00:01:45]} 31. Qd6 {[%clk 00:03:42]} {[%emt 00:02:29]} d4 {[%clk
00:01:34]} {[%emt 00:01:28]} 32. Bxd4 {[%clk 00:03:07]} {[%emt 00:01:05]} Rd7
{[%clk 00:01:25]} {[%emt 00:00:39]} 33. Qc5 {[%clk 00:02:45]} {[%emt 00:00:52]}
Qg5+ {[%clk 00:01:03]} {[%emt 00:00:52]} 34. Kc3 {[%clk 00:02:49]} {[%emt
00:00:26]} Bf7 {[%clk 00:00:39]} {[%emt 00:00:54]} 35. Rb8 {[%clk 00:02:35]}
{[%emt 00:00:44]} Rxd4 {[%clk 00:00:39]} {[%emt 00:00:30]} 36. Rxe8+ {[%clk
00:01:53]} {[%emt 00:01:12]} Bxe8 {[%clk 00:01:07]} {[%emt 00:00:02]} 37. Ne7+
{[%clk 00:01:34]} {[%emt 00:00:49]} Qxe7 {[%clk 00:01:06]} {[%emt 00:00:30]} 38.
Qxe7 {[%clk 00:01:57]} {[%emt 00:00:08]} Nxe7 {[%clk 00:01:24]} {[%emt
00:00:12]} 39. Kxd4 {[%clk 00:02:25]} {[%emt 00:00:02]} Kf7 {[%clk 00:01:13]}
{[%emt 00:00:41]} 40. Kc5 {[%clk 00:17:44]} {[%emt 00:00:10]} Bd7 {[%clk
00:15:32]} {[%emt 00:01:12]} 41. Rb4 {[%clk 00:15:45]} {[%emt 00:02:29]} Ke8
{[%clk 00:13:24]} {[%emt 00:02:36]} 42. a4 {[%clk 00:12:16]} {[%emt 00:04:01]}
Kd8 {[%clk 00:13:08]} {[%emt 00:00:46]} 43. a5 {[%clk 00:10:37]} {[%emt
00:02:10]} Bc8 {[%clk 00:08:42]} {[%emt 00:04:54]} 44. Rd4+ {[%clk 00:08:44]}
{[%emt 00:02:23]} Kc7 {[%clk 00:08:51]} {[%emt 00:00:21]} 45. Rf4 {[%clk
00:09:13]} {[%emt 00:00:02]} Be6 {[%clk 00:04:42]} {[%emt 00:04:39]} 46. Re4
{[%clk 00:08:49]} {[%emt 00:00:54]} Kd7 {[%clk 00:04:46]} {[%emt 00:00:26]} 47.
a6 {[%clk 00:08:58]} {[%emt 00:00:21]} Nc8 {[%clk 00:05:11]} {[%emt 00:00:05]}
48. Rb4 {[%clk 00:08:49]} {[%emt 00:00:39]} 1-0